Cogmind - Beta 13 @@@ ROGUE MODE // 2024.03.31 @ 15:02:15 Player: fippe Result: Destroyed by as-59087 with Assembled Blade Performance ------------- Evolutions (0) 0 Regions Visited (0) 0 Robots Destroyed (1) 5 Value Destroyed (53) 53 Prototype IDs (0) 0 Alien Tech Used (0) 0 Bonus (0) 0 TOTAL SCORE: 58 Bonus ------- None Cogmind --------- Core Integrity 0/250 Matter 241/300 Energy 93/100 System Corruption 0% Temperature Cool (0) Movement Core (50) Location -11/Scrapyard Parts ------- > --- POWER (1) -------- (None) > --- PROPULSION (2) --- (None) > --- UTILITY (2) ------ (None) > --- WEAPON (2) ------- (None) > --- INVENTORY (5) ---- (None) Peak State ------------ > --- POWER ------------ Ion Engine > --- PROPULSION ------- Light Treads Light Treads > --- UTILITY ---------- Small Storage Unit > --- WEAPON ----------- EM Pulse Gun Assault Rifle > --- INVENTORY -------- Light Ion Engine [Rating: 6] Favorites ----------- Power Ion Engine Engine Ion Engine Propulsion Light Treads Treads Light Treads Utility Small Storage Unit Storage Small Storage Unit Weapon Assault Rifle Energy Gun EM Pulse Gun Ballistic Gun Assault Rifle Build | -11 ------- Run | Yrd Slots Evolved . | . Power . | . Propulsion . | . Utility . | . Weapon . | . Parts Attached 7 | 7 Power 2 | 2 Engine 2 | 2 Core . | . Reactor . | . Propulsion 2 | 2 Treads 2 | 2 Leg . | . Wheel . | . Hover . | . Flight . | . Utility 1 | 1 Device . | . Storage 1 | 1 Processor . | . Hackware . | . Protection . | . Artifact . | . Weapon 2 | 2 Energy Gun 1 | 1 Energy Cannon . | . Ballistic Gun 1 | 1 Ballistic Cannon . | . Launcher . | . Special Weapon . | . Impact Weapon . | . Slashing Weapon . | . Piercing Weapon . | . Special Melee Weapon . | . Unidentified Prototypes . | . Parts Lost 5 | 5 Power 1 | 1 Propulsion 2 | 2 Utility . | . Weapon 2 | 2 Highest Loss Streak 5 | 5 To Critical Strikes . | . Average Slot Usage (%) . | . Naked Turns . | . Heaviest Build 14 | 14 Greatest Support 40 | 40 Greatest Overweight (x) 1 | 1 Average Overweight (x) . | . Largest Inventory Capacity 8 | 8 Average Capacity 7 | 7 Most Carried 3 | 3 Average Carried 1 | 1 Final Capacity 5 | 5 Final Carried . | . Class Distribution -------------------- None Dominant Class ---------------- None Resources | -11 ----------- Run | Yrd Matter Collected 213 | 213 Remotely . | . Salvage Created 47 | 47 Parts 1 | 1 Haulers Intercepted . | . Recyclers Shooed . | . Parts Field Recycled . | . Retrieved Matter . | . Parts Self-Destructed . | . Prevented . | . Kills | -11 ------- Run | Yrd Combat Hostiles Destroyed 3 | 3 Guns 3 | 3 Classes Destroyed 2 | 2 Demolisher 1 | 1 Assembled 2 | 2 Best Kill Streak 3 | 3 Combat Bots Only 3 | 3 Max Kills in Single Turn 1 | 1 Gunslinging . | . Exploded . | . Melee . | . Uniques/NPCs Destroyed . | . Combat | -11 -------- Run | Yrd Hostile Shots Fired 25 | 25 Missed 1 | 1 Damage Taken 826 | 826 Core 252 | 252 Absorbed by Shields . | . Core Remaining (%) . | . Volleys Fired 9 | 9 Largest 2 | 2 Hottest 60 | 60 Shots Fired 15 | 15 Gun 15 | 15 Cannon . | . Launcher . | . Special . | . Kinetic 9 | 9 Thermal . | . Explosive . | . Electromagnetic 6 | 6 Robot Hit Streak 7 | 7 Robot Miss Streak 3 | 3 Penetration Max . | . Secondary Targets . | . Shots Hit Robots 11 | 11 Core Hits 9 | 9 Critical Kills . | . Critical Parts Destroyed . | . Critical Strikes . | . Melee Attacks . | . Impact . | . Slashing . | . Piercing . | . Sneak Attacks . | . Combat Hostiles . | . Follow-up Attacks . | . Damage Inflicted 176 | 176 Guns 176 | 176 Cannons . | . Explosions . | . Melee . | . Ramming . | . Kinetic 121 | 121 Thermal . | . Explosive . | . Electromagnetic 55 | 55 Impact . | . Slashing . | . Piercing . | . Highest Corruption . | . Average Corruption . | . Corruption Purged . | . Corruption Blocked . | . Overload Shots . | . Overflow Damage . | . Projectiles . | . Explosions . | . Melee . | . Knockbacks . | . Impact . | . Kinetic . | . Secondary . | . Self-Inflicted Damage . | . Shots . | . Rammed . | . Targets Rammed . | . Kicked . | . Crushed . | . Highest Temperature . | . Average Temperature . | . Received Heat Transfer . | . Siege Activations . | . Robots Corrupted . | . Combat Hostiles . | . Parts Fried . | . Impact Corruptions . | . Robots Melted . | . Combat Hostiles . | . Parts Melted . | . Heat Transferred . | . Parts Sabotaged . | . Parts Stolen . | . Parts Stripped . | . Power Chain Reactions . | . Alert | -11 ------- Run | Yrd Peak Influence 20 | 20 Initial . | . Average . | . Maximum Alert Level . | . Low Security (%) 100 | 100 Level 1 . | . Level 2 . | . Level 3 . | . Level 4 . | . Level 5 . | . High Security . | . Max Security . | . Squads Dispatched . | . Investigation . | . Extermination . | . Reinforcement . | . Assault . | . Garrison . | . Intercept . | . Searches Triggered . | . Construction Impeded . | . Haulers Reinforced . | . Active Scanning Responses . | . Cargo Convoy Interrupts . | . Stealth | -11 --------- Run | Yrd Distress Signals . | . Communications Jammed . | . Distress Signals . | . Times Spotted 7 | 7 Peak Tracking Total 5 | 5 Tactical Retreats . | . Traps | -11 ------- Run | Yrd Traps Triggered . | . Indirectly . | . Trap Hack Attempts . | . Triggered . | . Disarmed . | . Reprogrammed . | . Reused . | . Traps Extracted . | . Installed . | . Triggered . | . Machines | -11 ---------- Run | Yrd Machines Disabled . | . Max in Single Turn . | . Machines Repaired . | . Machines Dismantled . | . Machines Sabotaged . | . Overloaded Fab Kills . | . Hacking | -11 --------- Run | Yrd Machines Accessed . | . Terminals . | . Fabricators . | . Repair Stations . | . Recycling Units . | . Scanalyzers . | . Garrison Access . | . Total Hacks . | . Successful . | . Failed . | . Catastrophic . | . Database Lockouts . | . Manual . | . Terminals . | . Fabricators . | . Repair Stations . | . Recycling Units . | . Scanalyzers . | . Garrison Access . | . Terminal Hacks . | . Fabricator Hacks . | . Repair Station Hacks . | . Recycling Unit Hacks . | . Scanalyzer . | . Garrison Access Hacks . | . Unauthorized Hacks . | . Terminals . | . Fabricators . | . Repair Stations . | . Recycling Units . | . Scanalyzers . | . Garrison Access . | . Data Cores Recovered . | . Used . | . Hacking Detections . | . Full Trace Events . | . Feedback Events . | . Feedback Blocked . | . Robot Schematics Acquired . | . Robots Built . | . Authchips . | . Time . | . Total Robot Build Rating . | . Part Schematics Acquired . | . Parts Built . | . Authchips . | . Time . | . Total Part Build Rating . | . Parts Repaired . | . Time . | . Parts Recycled . | . Recycled Matter . | . Retrieved Matter . | . Retrieved Components . | . Parts Scanalyzed . | . Part Schematics Acquired . | . Parts Damaged . | . Bothacking | -11 ------------ Run | Yrd Used RIF Installer . | . Robots Hacked . | . Non-combat . | . Combat . | . Robot Hacks Applied . | . Relay Couplers Released . | . Fabnet Peak Effective % . | . Robots Rewired . | . Allies Hacked . | . Hacks Repelled . | . Allies | -11 -------- Run | Yrd Total Allies . | . Largest Group . | . Highest-Rated Group . | . Highest-Rated Ally . | . Total Orders . | . Ally Attacks . | . Total Damage . | . Kills . | . Allies Corrupted . | . Allies Melted . | . Intel | -11 ------- Run | Yrd Robot Analysis Total . | . Derelict Logs Recovered . | . Drone Launches . | . Drone Recoveries . | . Exploration | -11 ------------- Run | Yrd Turns Passed 2582 | 2582 Spaces Moved 511 | 511 Core 11 | 11 Treads 500 | 500 Legs . | . Wheels . | . Hover . | . Flight . | . Fastest Speed 50 | 50 Average Speed 157 | 157 Slowest Speed 160 | 160 Overloaded Moves . | . Propulsion Burnouts . | . Robots Hopped . | . Cave-ins Triggered . | . Exploration Rate (%) 47 | 47 Regions Visited . Branch Regions . Pre-discovered Areas . | . Known Exits Taken . | . Unknown Exits Taken . | . Scrap Searched . | . Spaces Dug . | . Terrain Destroyed . | . Melee . | . Projectile . | . AOE . | . Terrain Rammed . | . Walls Destroyed . | . Machines Disabled . | . Actions | -11 --------- Run | Yrd Total 2272 | 2272 Wait 1738 | 1738 Move 511 | 511 Hop . | . Pick Up 7 | 7 Fast Attach . | . Attach 7 | 7 Detach . | . Swap . | . Drop . | . Fire 9 | 9 Melee . | . Ram . | . Kick . | . Crush . | . Escape Stasis . | . Rewire . | . Trap . | . Miscellaneous . | . Route ------- -11/Scrapyard (discovered 1 exit: [*Mat]) History --------- Turn | Location | Event 5 | -11/Scrapyard | Discovered new exit (range 16) 2533 | -11/Scrapyard | Assembled infested the area 2578 | -11/Scrapyard | Core integrity fell below 50% 2583 | -11/Scrapyard | Core integrity fell below 20% 2583 | -11/Scrapyard | Released all parts (1) 2583 | -11/Scrapyard | Destroyed by as-59087 with Assembled Blade Last Messages --------------- The unstable cave ceiling collapses. K-01 Serf collects debris. K-01 Serf destroyed. D-53 Grenadier destroyed. Acquired 11 matter. The unstable cave ceiling collapses. as-22692 destroyed. Lgt. Treads destroyed. EM Pulse Gun destroyed. as-59099 destroyed. Ion Engine destroyed. Assault Rifle destroyed. Lgt. Treads destroyed. Lgt. Ion Engine severed. Overweight warning: You are carrying more than your current propulsion can efficiently support, which slows movement; see status page ('s') or the top of the parts list for the specific mass vs. support values. Released Sml. Storage Unit. Map ----- +----------------------------------------------------+ | ?????????????????????????????????????????????????? | | ?????????##########??????????????????????????????? | | ????????# #??????????????????????????????? | | ????????# #??????????????????????????????? | | ????????# #??????????????????????????????? | | ????????# #??????????????????????????????? | | ######### #??????????????????????????????? | | # ???????????????????????????????? | | #? ????????????????????????????????? | | #??? ??????????????###????????????????? | | ###### ############### ###??????????????? | | ## # ???????????? | | # ??????????? | | # ??????????? | | ??????????? | | # ??????????? | | ######### ??????????? | | ??????### ???????????? | | *!??????????? | | =%???????????? | | ??########## ##### = # ### ######????????????? | | ?????????? ????# % #??? ????????????????? | | ?????????# ?????# %a##???? ??????????????? | | ?????????# ??????# a*#?????? ??????????????? | | ?????????#???????# ##a!#??????? ??????????????? | | ?????????????????# ## @#??????????????????????? | | ?????????????????# ## #??????????????????????? | | ?????????????????# ## #??######??????????????? | | ??????????############## #??# #??????????????? | | ??????????# # #??# #?######???????? | | ??????????# # #??# #?# #???????? | | ?#######??# #??# #?# #???????? | | ## #??# # #??# #?# ###???????? | | # #??# # #??# #?# #?????????? | | # #??############## #### #?# #?????????? | | # ##########???# t # #?# #?????????? | | # # #???# # ### ##????????? | | ?? # = #???# ### ### #????????? | | #### ### [ ##### #????????? | | = #????????? | | = ### ### #????????? | | #### ### = ##### < ## ######????????? | | # # #???# ## #?????????????? | | # # #???########### #?????????????? | | # #### ########?????????# #?????????????? | | # #??# ### ##????????# #?????????????? | | # #??# ## #????????# #?????????????? | | # #??# ## #????????# #?????????????? | | # ######??# ## #???##???# #?????????????? | | # #???????# ## #??? #???# #?????????????? | +----------------------------------------------------+ Best States ------------- Heat Dissipation 25 Energy Generation 10 Energy Capacity 250 Matter Stores 242 Matter Capacity 300 Sight Range 16 Terrain Scan Density 10 Evasion (%) 40 Recoil Reduction 2 Item Schematics ----------------- None Robot Schematics ------------------ None Fabricated ------------ Nothing Alien Tech Used ----------------- None Achievements -------------- Curiosity Killed The Cat Challenges ------------ None Game ------ Seed ShadeShrapnelSaw Manual? 0 Play Time 00:26:16 Cumulative 1.1 hours Start 2024.03.31 @ 14:46:08 End 2024.03.31 @ 15:02:15 Sessions 0 Manual Loads 0 Difficulty Rogue Special Mode None Game No. 3 Rogue 3 Adventurer 0 Explorer 0 Win Type - Total 0 Types 0/0/0/0/0/0/0/0/0 Lore% 1 Gallery% 5 Achievement% 7 Wizard Run 0 Options --------- Layout 1 ASCII 0 Keyboard 0 Movement Mouse Keybinds 0 Fullscreen 1 Font 24/Smallcaps Map View 50x35 Zoom Use 0% Tactical HUD 0 Map Filters NONE Filters NONE Steam 1 RUN: 7c6ac5b3-9f64-4c1f-ba16-e06c69667ae8